Workbook

Sheet Úvodní informace
A1: Úvodní informace k tomuto dokumentu
A4: Upozornění: Tento dokument využívá funkci maker, tudíž se může jevit jako nedůvěryhodný či nebezpečný, a to v návaznosti na bezpečnostní nastavení Vašeho počítače, připadně aplikace MS Excel. Makra však můžete bez obav používat, případně jejich používání povolit - makra jsou nastavena v nezbytném rozsahu pro zjednodušení a správnou funkčnost níže uvedené tabulky. V případě technických potíží kontaktujte své IT oddělení.
A10: 1) | B10: Tento soubor obsahuje dva listy s názvy "Instrukce" a "Přehled změn a dodatků" (viz níže).
A12: 2) | B12: Tabulka určená k doplnění je obsahem listu Přehled změn a dodatků. Tabulka vychází ze zákona č. 137/2006 Sb., o veřejných zakázkách, ve znění pozdějších předpisů (dále jen "ZVZ") a zákona č. 134/2016 Sb., o zadávání veřejných zakázek, ve znění pozdějších předpisů (dále jen "ZZVZ").
A14: 3) | B14: Instrukce pro doplňování Přehledu změn a dodatků (dále jen "Přehled"):
B15: a) | C15: pokud bude Přehled předkládán prvně, budou v něm obsaženy aktuální (výchozí) informace o změnách a dodatcích k dotčené akci (veřejné zakázky). Pokud následně vyvstane potřeba předložit upravený Přehled, bude tento vycházet z předchozího Přehledu, přičemž bude doplněn o nové informace (tj. bude se jednat o aktualizovaný Přehled).
B18: b) | C18: doplňují se žlutě podbarvená pole; tato pole po výběru zobrací nápovědu,
B19: c) | C19: u buněk označených v pravém horním rohu červeným trojúhelníkem jsou uvedeny poznámky, komentáře či bližší upřesnění,
B21: d) | C21: ostatní pole neslouží k doplnění (jsou doplňována automaticky, je-li to pro dané pole relevantní),
B22: e) | C22: částky budou zadávány v Kč bez daně z přidané hodnoty (DPH),
B23: f) | C23: u změnové tabulky určené k doplnění je možné vkládat nové řádky kliknutím na příslušné tlařítko s tím, že vzorce by měly být automaticky přenášeny; pro jistotu však výstupy překontrolujte. Nové řádky nevkládejte pokud není doplněn žádný údaj o změně (popis změny).
B26: g) | C26: Finanční částky ve sloupci hodnot budou uváděny v Kč bez DPH s přesností na 2 desetinná místa.
A28: 4) | B28: Přehled změn a dodatků zasílá příjemce dotace v souladu se stanoveným příkazem ředitele OIVZ (tj. elektronicky); tisk slouží pouze pro vlastní potřebu příjemce dotace.
K32: Verze dokumentu: | M32: 1.02
B34: Změny oproti předchozí verzi:
B35: - upraveny nesrovnalosti v komentářích k ust. § 222 odst. 5 a 6 ZZVZ (buňky I6 až L6)
B36: - upraven vzorec pro výpočet celkového cenového nárůstu ve smyslu ust. § 222 odst. 9 ZZVZ (tabulka nepočítala validně pokud byly vícepráce a méněpráce na různých řádcích - původně bylo předpokládáno, že jsou změny činěny v rámci jednoho ZL)

Sheet Přehled změn a dodatků
A1: Přehled změn a dodatků | AP1: Druh veřejné zakázky
A2: Název akce: | D2: Integrované městské centrum služeb Tilia | K2: Identifikační č. akce EDS/SMVS: | M2: Z2021-044824 | AP2: dodávky
A3: Název veřejné zakázky: | D3: Integrované městské centrum služeb Tilia | K3: Druh veřejné zakázky: | M3: stavební práce | AP3: služby
A4: Původní hodnota závazku (cena sjednaná ve smlouvě bez DPH): | D4: 80628787.02 | AP4: stavební práce
A6: Změna č. | B6: Popis změn | C6: Dodatek č. | D6: Celková hodnota změn | E6: Hodnota změny (ZVZ) - | F6: Hodnota změny (ZVZ) + | G6: Hodnota změny (§222 odst. 4 ZZVZ) - | H6: Hodnota změny (§222 odst. 4 ZZVZ) + | I6: Hodnota změny (§222 odst. 5 ZZVZ) - | J6: Hodnota změny (§222 odst. 5 ZZVZ) + | K6: Hodnota změny (§222 odst. 6 ZZVZ) - | L6: Hodnota změny (§222 odst. 6 ZZVZ) + | M6: Hodnota změny (§222 odst. 7 ZZVZ) - | N6: Hodnota změny (§222 odst. 7 ZZVZ) + | O6: Hodnota změny ve vztahu k § 222 odst. 4 ZZVZ | P6: Hodnota změny ve vztahu k §222 odst. 5 ZZVZ | Q6: Hodnota změny ve vztahu k §222 odst. 6 ZZVZ | R6: Cenový nárůst související se změnou podle §222 odst. 5 a 6 ZZVZ (ve smyslu ust. § 222odst. 9) | S6: Dodatek č. 1 | T6: Dodatek č. 2 | U6: Dodatek č. 3 | V6: Dodatek č. 4 | W6: Dodatek č. 5 | X6: Dodatek č. 6 | Y6: Dodatek č. 7 | Z6: Dodatek č. 8 | AA6: Dodatek č. 9 | AB6: Dodatek č. 10 | AC6: Dodatek č. 11 | AD6: Dodatek č. 12 | AE6: Dodatek č. 13 | AF6: Dodatek č. 14 | AG6: Dodatek č. 15
A7: 1 | B7: Válečný stav | C7: 2 | D7: =(F7-E7)+(H7-G7)+(J7-I7)+(L7-K7)+(N7-M7) -> 2917099.09 | H7: 2917099.09 | O7: =G7+H7 -> 2917099.09 | P7: =J7+I7 -> 0 | Q7: =L7+K7+F7 -> 0 | R7: =L7+J7+F7 -> 0 | S7: =IF($C7=1,$D7,"") ->  | T7: =IF($C7=2,$D7,"") -> 2917099.09 | U7: =IF($C7=3,$D7,"") ->  | V7: =IF($C7=4,$D7,"") ->  | W7: =IF($C7=5,$D7,"") ->  | X7: =IF($C7=6,$D7,"") ->  | Y7: =IF($C7=7,$D7,"") ->  | Z7: =IF($C7=8,$D7,"") ->  | AA7: =IF($C7=9,$D7,"") ->  | AB7: =IF($C7=10,$D7,"") ->  | AC7: =IF($C7=11,$D7,"") ->  | AD7: =IF($C7=12,$D7,"") ->  | AE7: =IF($C7=13,$D7,"") ->  | AF7: =IF($C7=14,$D7,"") ->  | AG7: =IF($C7=15,$D7,"") -> 
A8: 2 | B8: Stažení obvodových konstrukcí a nátěry krokví | C8: 3 | D8: =(F8-E8)+(H8-G8)+(J8-I8)+(L8-K8)+(N8-M8) -> 367311.15 | H8: 367311.15 | O8: =G8+H8 -> 367311.15 | P8: =J8+I8 -> 0 | Q8: =L8+K8+F8 -> 0 | R8: 0 | S8: =IF($C8=1,$D8,"") ->  | T8: =IF($C8=2,$D8,"") ->  | U8: =IF($C8=3,$D8,"") -> 367311.15 | V8: =IF($C8=4,$D8,"") ->  | W8: =IF($C8=5,$D8,"") ->  | X8: =IF($C8=6,$D8,"") ->  | Y8: =IF($C8=7,$D8,"") ->  | Z8: =IF($C8=8,$D8,"") ->  | AA8: =IF($C8=9,$D8,"") ->  | AB8: =IF($C8=10,$D8,"") ->  | AC8: =IF($C8=11,$D8,"") ->  | AD8: =IF($C8=12,$D8,"") ->  | AE8: =IF($C8=13,$D8,"") ->  | AF8: =IF($C8=14,$D8,"") ->  | AG8: =IF($C8=15,$D8,"") -> 
A9: 3 | B9: Přístavba - bourací práce | C9: 3 | D9: 102385.85 | H9: 102385.85 | O9: =G9+H9 -> 102385.85 | P9: =J9+I9 -> 0 | Q9: 0 | R9: 0 | U9: 102385.85
A10: 4 | B10: Přístavba - zdivo a základy | C10: 3 | D10: 605394.96 | H10: 605394.96 | O10: 605394.96 | P10: 0 | Q10: 0 | R10: 0 | U10: 605394.96
A11: 5 | B11: VRN - prdloužení termínu | C11: 3 | D11: 538254.35 | H11: 538254.35 | O11: =G11+H11 -> 538254.35 | P11: 0 | Q11: 0 | R11: 0 | U11: 538254.35
A12: 6 | B12: Násyp betonového recyklátu | C12: 4 | D12: 274080 | L12: 274080 | O12: 0 | P12: 0 | Q12: 274080 | R12: 274080 | V12: 274080
A13: 7 | B13: střešní okna | C13: 4 | D13: =(F13-E13)+(H13-G13)+(J13-I13)+(L13-K13)+(N13-M13) -> 119133.5 | H13: 148685 | M13: 327617.13 | N13: 298065.63 | O13: =G13+H13 -> 148685 | P13: =J13+I13 -> 0 | Q13: =L13+K13+F13 -> 0 | R13: 0 | S13: =IF($C13=1,$D13,"") ->  | T13: =IF($C13=2,$D13,"") ->  | U13: =IF($C13=3,$D13,"") ->  | V13: =IF($C13=4,$D13,"") -> 119133.5 | W13: =IF($C13=5,$D13,"") ->  | X13: =IF($C13=6,$D13,"") ->  | Y13: =IF($C13=7,$D13,"") ->  | Z13: =IF($C13=8,$D13,"") ->  | AA13: =IF($C13=9,$D13,"") ->  | AB13: =IF($C13=10,$D13,"") ->  | AC13: =IF($C13=11,$D13,"") ->  | AD13: =IF($C13=12,$D13,"") ->  | AE13: =IF($C13=13,$D13,"") ->  | AF13: =IF($C13=14,$D13,"") ->  | AG13: =IF($C13=15,$D13,"") -> 
A14: 8 | B14: retenční nádrž | C14: 4 | D14: -204692.84 | M14: 710437.84 | N14: 505745 | O14: 0 | P14: 0 | Q14: 0 | R14: 0 | V14: -204692.84
A15: 9 | B15: světlík | C15: 4 | D15: 127145.67 | K15: 26319.6 | L15: 153465.27 | O15: 0 | P15: 0 | Q15: 179784.87 | R15: 153465.27 | V15: 127145.67
A16: 10 | B16: vnější parapety | C16: 4 | D16: 141331.77 | K16: 70491.1 | L16: 211822.87 | O16: 0 | P16: 0 | Q16: 282313.97 | R16: 211822.87 | V16: 141331.77
A17: 11 | B17: Otvorová výplň F13 | C17: 4 | D17: =(F17-E17)+(H17-G17)+(J17-I17)+(L17-K17)+(N17-M17) -> 412900.41 | G17: 154675 | H17: 567575.41 | O17: =G17+H17 -> 722250.41 | P17: =J17+I17 -> 0 | Q17: =L17+K17+F17 -> 0 | R17: =L17+J17+F17 -> 0 | S17: =IF($C17=1,$D17,"") ->  | T17: =IF($C17=2,$D17,"") ->  | U17: =IF($C17=3,$D17,"") ->  | V17: =IF($C17=4,$D17,"") -> 412900.41 | W17: =IF($C17=5,$D17,"") ->  | X17: =IF($C17=6,$D17,"") ->  | Y17: =IF($C17=7,$D17,"") ->  | Z17: =IF($C17=8,$D17,"") ->  | AA17: =IF($C17=9,$D17,"") ->  | AB17: =IF($C17=10,$D17,"") ->  | AC17: =IF($C17=11,$D17,"") ->  | AD17: =IF($C17=12,$D17,"") ->  | AE17: =IF($C17=13,$D17,"") ->  | AF17: =IF($C17=14,$D17,"") ->  | AG17: =IF($C17=15,$D17,"") -> 
A18: 12 | B18: Vnější žaluzie | C18: 4 | D18: 134780.33 | L18: 134780.33 | O18: 0 | P18: 0 | Q18: 134780.33 | R18: 134780.33 | V18: 134780.33
A19: 13 | B19: radiátory | C19: 4 | D19: 211330 | G19: 161997 | H19: 373327 | O19: 535324 | P19: 0 | Q19: 0 | R19: 0 | V19: 211330
A20: 14 | B20: VRN - prdloužení termínu k ZL09 | C20: 4 | D20: 112637.9 | L20: 112637.9 | O20: 0 | P20: 0 | Q20: 112637.9 | R20: 112637.9 | V20: 112637.9
A21: 15 | B21: Obklady a dlažby | C21: 5 | D21: -29786.66 | G21: 366369.08 | H21: 336582.42 | O21: 702951.5 | P21: 0 | Q21: 0 | R21: 0 | W21: -29786.66
A22: 16 | B22: Vnitřní omítky | C22: 5 | D22: 20493.71 | M22: 1386050.02 | N22: 1406543.73 | O22: 0 | P22: 0 | Q22: 0 | R22: 0 | W22: 20493.71
A23: 16 | B23: vnitřní barytová omítka | C23: 5 | D23: 121288.3 | L23: 121288.3 | O23: 0 | P23: 0 | Q23: 121288.3 | R23: 121288.3 | W23: 121288.3
A24: 17 | B24: povrchy podlah | C24: 5 | D24: 233917.28 | M24: 1475233.53 | N24: 1709150.81 | O24: 0 | P24: 0 | Q24: 0 | R24: 0 | W24: 233917.28
B25: povrchy podlah neuz.koberce | C25: 5 | D25: 424820 | N25: 424820 | O25: 0 | P25: 0 | Q25: 0 | R25: 0 | W25: 424820
B26: dřevěná podlaha | C26: 5 | D26: 327709.65 | H26: 327709.65 | O26: 327709.65 | P26: 0 | Q26: 0 | R26: 0 | W26: 327709.65
A27: 18 | B27: venkovní výplně | C27: 5 | D27: -23313.23 | K27: 277031.5 | L27: 253718.27 | O27: 0 | P27: 0 | Q27: 530749.77 | R27: 253718.27 | W27: -23313.23
A28: 19 | B28: SDK | C28: 5 | D28: =(F28-E28)+(H28-G28)+(J28-I28)+(L28-K28)+(N28-M28) -> 32954.5 | M28: 1256607.31 | N28: 1289561.81 | O28: =G28+H28 -> 0 | P28: =J28+I28 -> 0 | Q28: =L28+K28+F28 -> 0 | R28: =L28+J28+F28 -> 0 | S28: =IF($C28=1,$D28,"") ->  | T28: =IF($C28=2,$D28,"") ->  | U28: =IF($C28=3,$D28,"") ->  | V28: =IF($C28=4,$D28,"") ->  | W28: =IF($C28=5,$D28,"") -> 32954.5 | X28: =IF($C28=6,$D28,"") ->  | Y28: =IF($C28=7,$D28,"") ->  | Z28: =IF($C28=8,$D28,"") ->  | AA28: =IF($C28=9,$D28,"") ->  | AB28: =IF($C28=10,$D28,"") ->  | AC28: =IF($C28=11,$D28,"") ->  | AD28: =IF($C28=12,$D28,"") ->  | AE28: =IF($C28=13,$D28,"") ->  | AF28: =IF($C28=14,$D28,"") ->  | AG28: =IF($C28=15,$D28,"") -> 
A29: 20 | B29: úprava vnitřních výplní | C29: 5 | D29: 283204.99 | M29: 2685175 | N29: 2968379.99 | O29: 0 | P29: 0 | Q29: 0 | R29: 0 | W29: 283204.99
A30: 21 | B30: fasáda | C30: 5 | D30: 326040.93 | K30: 272977.25 | L30: 599018.18 | O30: 0 | P30: 0 | Q30: 871995.43 | R30: 599018.18 | W30: 326040.93
A31: 22 | B31: zárubně | C31: 5 | D31: -20017.48 | M31: 195287 | N31: 175269.52 | O31: 0 | P31: 0 | Q31: 0 | R31: 0 | W31: -20017.48
A32: 23 | B32: vnější schodiště | C32: 5 | D32: 318359.1 | K32: 149841.85 | L32: 468200.95 | O32: 0 | P32: 0 | Q32: 618042.8 | R32: 468200.95 | W32: 318359.1
A33: 24 | B33: Elektro | C33: 5 | D33: -615871.4 | K33: 615871.4 | O33: 0 | P33: 0 | Q33: 615871.4 | R33: 0 | W33: -615871.4
B34: EZS | C34: 5 | D34: 132666.29 | L34: 132666.29 | O34: 0 | P34: 0 | Q34: 132666.29 | R34: 132666.29 | W34: 132666.29
B35: úprava vrátníků a DT | C35: 5 | D35: 162296.79 | L35: 162296.79 | O35: 0 | P35: 0 | Q35: 162296.79 | R35: 162296.79 | W35: 162296.79
B36: změna koncových prvků Levit | C36: 5 | D36: 36807.49 | H36: 36807.49 | O36: 36807.49 | P36: 0 | Q36: 0 | R36: 0 | W36: 36807.49
B37: doplnění topných kabelů | C37: 5 | D37: 15020.81 | L37: 15020.81 | O37: 0 | P37: 0 | Q37: 15020.81 | R37: 15020.81 | W37: 15020.81
B38: lékárna | C38: 5 | D38: 45798 | H38: 45798 | O38: 45798 | P38: 0 | Q38: 0 | R38: 0 | W38: 45798
B39: přenosná indukční smyčka | C39: 5 | D39: 38312.78 | L39: 38312.78 | O39: 0 | P39: 0 | Q39: 38312.78 | R39: 38312.78 | W39: 38312.78
B40: doplnění distančních podložek na inst. Krabice pod koncové prvky | C40: 5 | D40: 28795 | L40: 28795 | O40: 0 | P40: 0 | Q40: 28795 | R40: 28795 | W40: 28795
B41: doplnění instalačních rámečků na svítidla A1 | C41: 5 | D41: 51540 | L41: 51540 | O41: 0 | P41: 0 | Q41: 51540 | R41: 51540 | W41: 51540
B42: změna svítidel dle revize PD | C42: 5 | D42: 371024.6 | N42: 371024.6 | O42: 0 | P42: 0 | Q42: 0 | R42: 0 | W42: 371024.6
B43: doplnění aktivních prvků AP | C43: 5 | D43: 9150 | H43: 9150 | O43: 9150 | P43: 0 | Q43: 0 | R43: 0 | W43: 9150
A44: 25 | B44: vnitřní dveře | C44: 5 | D44: -82870.75 | K44: 118012 | L44: 35141.25 | O44: 0 | P44: 0 | Q44: 153153.25 | R44: 35141.25 | W44: -82870.75
A45: 26 | B45: ordinace zubního lékaře nezp. | C45: 5 | D45: 24738 | H45: 24738 | O45: 24738 | P45: 0 | Q45: 0 | R45: 0 | W45: 24738
A46: 27 | B46: betonáž základové desky | C46: 5 | D46: 573584.12 | L46: 573584.12 | O46: 0 | P46: 0 | Q46: 573584.12 | R46: 573584.12 | W46: 573584.12
A47: 28 | B47: VRN - | C47: 5 | D47: 140313.58 | H47: 140313.58 | O47: 140313.58 | P47: 0 | Q47: 0 | R47: 0 | W47: 140313.58
A48: 29 | B48: ocelové zábradlí | C48: 6 | D48: =(F48-E48)+(H48-G48)+(J48-I48)+(L48-K48)+(N48-M48) -> 266419.12 | G48: 551070.65 | H48: 817489.77 | O48: =G48+H48 -> 1368560.42 | P48: =J48+I48 -> 0 | Q48: =L48+K48+F48 -> 0 | R48: =L48+J48+F48 -> 0 | S48: =IF($C48=1,$D48,"") ->  | T48: =IF($C48=2,$D48,"") ->  | U48: =IF($C48=3,$D48,"") ->  | V48: =IF($C48=4,$D48,"") ->  | W48: =IF($C48=5,$D48,"") ->  | X48: =IF($C48=6,$D48,"") -> 266419.12 | Y48: =IF($C48=7,$D48,"") ->  | Z48: =IF($C48=8,$D48,"") ->  | AA48: =IF($C48=9,$D48,"") ->  | AB48: =IF($C48=10,$D48,"") ->  | AC48: =IF($C48=11,$D48,"") ->  | AD48: =IF($C48=12,$D48,"") ->  | AE48: =IF($C48=13,$D48,"") ->  | AF48: =IF($C48=14,$D48,"") ->  | AG48: =IF($C48=15,$D48,"") -> 
A49: 30 | B49: rampa česaný beton | C49: 6 | D49: -114902.35 | M49: 335815.18 | N49: 220912.83 | O49: 0 | P49: 0 | Q49: 0 | R49: 0 | X49: -114902.35
A50: 31 | B50: ZTI, ÚT | C50: 6 | D50: -1390540.59 | M50: 1790140 | N50: 399599.41 | O50: 0 | P50: 0 | Q50: 0 | R50: 0 | X50: -1390540.59
A51: 32 | B51: VZT | C51: 6 | D51: 52688.45 | K51: 40057 | L51: 92711.45 | N51: 34 | O51: 0 | P51: 0 | Q51: 132768.45 | R51: 92711.45 | X51: 52688.45
A52: 33 | B52: malby | C52: 6 | D52: 135163.86 | L52: 135163.86 | O52: 0 | P52: 0 | Q52: 135163.86 | R52: 135163.86 | X52: 135163.86
A53: 34 | B53: zpevněné plochy | C53: 6 | D53: -70360.83 | K53: 329086.54 | L53: 258725.71 | O53: 0 | P53: 0 | Q53: 587812.25 | R53: 258725.71 | X53: -70360.83
A54: 35 | B54: dešťová kanalizace | C54: 6 | D54: 202284 | G54: 0 | H54: 202284 | O54: 202284 | P54: 0 | Q54: 0 | R54: 0 | X54: 202284
A55: 36 | B55: neprovedené práce a dodávky | C55: 6 | D55: -342349.37 | M55: 342349.37 | N55: 0 | O55: 0 | P55: 0 | Q55: 0 | R55: 0 | X55: -342349.37
D56: 0 | O56: 0 | P56: 0 | Q56: 0 | R56: 0
B57: CELKEM | D57: =SUBTOTAL(109,Tabulka1[Celková hodnota změn]) -> 7544470.83 | E57: =SUBTOTAL(109,Tabulka1[Hodnota změny (ZVZ) -]) -> 0 | F57: =SUBTOTAL(109,Tabulka1[Hodnota změny (ZVZ) +]) -> 0 | G57: =SUBTOTAL(109,Tabulka1[Hodnota změny (§222 odst. 4 ZZVZ) -]) -> 1234111.73 | H57: =SUBTOTAL(109,Tabulka1[Hodnota změny (§222 odst. 4 ZZVZ) +]) -> 7560905.72 | I57: =SUBTOTAL(109,Tabulka1[Hodnota změny (§222 odst. 5 ZZVZ) -]) -> 0 | J57: =SUBTOTAL(109,Tabulka1[Hodnota změny (§222 odst. 5 ZZVZ) +]) -> 0 | K57: =SUBTOTAL(109,Tabulka1[Hodnota změny (§222 odst. 6 ZZVZ) -]) -> 1899688.24 | L57: =SUBTOTAL(109,Tabulka1[Hodnota změny (§222 odst. 6 ZZVZ) +]) -> 3852970.13 | M57: =SUBTOTAL(109,Tabulka1[Hodnota změny (§222 odst. 7 ZZVZ) -]) -> 10504712.38 | N57: =SUBTOTAL(109,Tabulka1[Hodnota změny (§222 odst. 7 ZZVZ) +]) -> 9769107.33 | O57: =SUBTOTAL(109,Tabulka1[Hodnota změny ve vztahu k § 222 odst. 4 ZZVZ]) -> 8795017.45 | P57: =SUBTOTAL(109,Tabulka1[Hodnota změny ve vztahu k §222 odst. 5 ZZVZ]) -> 0 | Q57: =SUBTOTAL(109,Tabulka1[Hodnota změny ve vztahu k §222 odst. 6 ZZVZ ]) -> 5752658.37 | R57: =SUBTOTAL(109,Tabulka1[Cenový nárůst související se změnou podle §222 odst. 5 a 6 ZZVZ (ve smyslu ust. § 222odst. 9)]) -> 3852970.13 | S57: =SUBTOTAL(109,Tabulka1[Dodatek č. 1]) -> 0 | T57: =SUBTOTAL(109,Tabulka1[Dodatek č. 2]) -> 2917099.09 | U57: =SUBTOTAL(109,Tabulka1[Dodatek č. 3]) -> 1613346.31 | V57: =SUBTOTAL(109,Tabulka1[Dodatek č. 4]) -> 1328646.74 | W57: =SUBTOTAL(109,Tabulka1[Dodatek č. 5]) -> 2946976.4 | X57: =SUBTOTAL(109,Tabulka1[Dodatek č. 6]) -> -1261597.71 | Y57: =SUBTOTAL(109,Tabulka1[Dodatek č. 7]) -> 0 | Z57: =SUBTOTAL(109,Tabulka1[Dodatek č. 8]) -> 0 | AA57: =SUBTOTAL(109,Tabulka1[Dodatek č. 9]) -> 0 | AB57: =SUBTOTAL(109,Tabulka1[Dodatek č. 10]) -> 0 | AC57: =SUBTOTAL(109,Tabulka1[Dodatek č. 11]) -> 0 | AD57: =SUBTOTAL(109,Tabulka1[Dodatek č. 12]) -> 0 | AE57: =SUBTOTAL(109,Tabulka1[Dodatek č. 13]) -> 0 | AF57: =SUBTOTAL(109,Tabulka1[Dodatek č. 14]) -> 0 | AG57: =SUBTOTAL(109,Tabulka1[Dodatek č. 15]) -> 0
B58: CELKEM (v %) | D58: =IF($D$4=0,0,$D$57/$D$4) -> 0.09357043692 | H58: *Kliknutím na toto pole dojde k přidání nového řádku za poslední výskyt doplněného (neprázdného) pole ve výše uvedené tabulce, | O58: =IF($D$4=0,0,$O$57/$D$4) -> 0.1090803642 | P58: =IF($D$4=0,0,$P$57/$D$4) -> 0 | Q58: =IF($D$4=0,0,($Q$57)/$D$4) -> 0.07134745024
O59: =IF(OR($M$3="dodávky",$M$3="služby"),O58<0.1,O58<0.15) -> TRUE | P59: =IF(P58<=0.5,TRUE,FALSE) -> TRUE | Q59: =IF(Q58<=0.5,TRUE,FALSE) -> TRUE
A60: Souhrnný přehled celkové ceny včetně změn
B61: Popis | C61: Cena | G61: Hodnota změny ve vztahu k § 222 odst. 4 ZZVZ | I61: Hodnota změny ve vztahu k §222 odst. 5 ZZVZ | K61: Hodnota změny ve vztahu k §222 odst. 6 ZZVZ | M61: Cenový nárůst související se změnou podle §222 odst. 5 a 6 ZZVZ (ve smyslu ust. § 222odst. 9)
B62: Původní smlouva | C62: =$D$4 -> 80628787.02 | G62: =IF($D$4=0,0,$O$57/$D$4) -> 0.1090803642 | I62: =IF($D$4=0,0,$P$57/$D$4) -> 0 | K62: =IF($D$4=0,0,($Q$57)/$D$4) -> 0.07134745024 | M62: =IF($D$4=0,0,(VALUE(IF(($L$57+$J$57)-($K$57+$I$57)<=0,"0",($L$57-$K$57)+($J$57-$I$57)))+$F$57)/$D$4) -> 0.02422561423
B63: =IFERROR(IF(VLOOKUP(H63,$C$7:$C$56,1,FALSE),CONCATENATE(G63," ",H63),""),"") ->  | C63: =IF(F63=TRUE,SUMIFS($D$7:$D$56,$C$7:$C$56,H63),"") ->  | F63: =IFERROR(IF(VLOOKUP(VALUE(RIGHT(B63,2)),$C$7:$C$56,1,FALSE),TRUE,FALSE),FALSE) -> FALSE | G63: Dodatek č. | H63: 1 | N63: =IF(M62<=0.3,TRUE,FALSE) -> TRUE
B64: Dodatek č. 2 | C64: 2917099.09 | F64: TRUE | G64: Dodatek č. | H64: 2
B65: Dodatek č. 3 | C65: 1613346.31 | F65: TRUE | G65: Dodatek č. | H65: 3
B66: Dodatek č. 4 | C66: 1328646.74 | F66: TRUE | G66: Dodatek č. | H66: 4
B67: Dodatek č. 5 | C67: 2946976.4 | F67: TRUE | G67: Dodatek č. | H67: 5
B68: Dodatek č. 6 | C68: -1261597.71 | F68: TRUE | G68: Dodatek č. | H68: 6
F69: FALSE | G69: Dodatek č. | H69: 7
F70: FALSE | G70: Dodatek č. | H70: 8
F71: FALSE | G71: Dodatek č. | H71: 9
F72: FALSE | G72: Dodatek č. | H72: 10
F73: FALSE | G73: Dodatek č. | H73: 11
F74: FALSE | G74: Dodatek č. | H74: 12
F75: FALSE | G75: Dodatek č. | H75: 13
F76: FALSE | G76: Dodatek č. | H76: 14
F77: FALSE | G77: Dodatek č. | H77: 15
B78: Realizační cena CELKEM vč. změn | C78: =SUM(C62:E77) -> 88173257.85
L79: Verze dokumentu: | N79: ='Úvodní informace'!M32 -> 1.02

Sheet List1
A2: vysoutěženo | C2: 80628787.02
A3: dodatek č.2 | C3: 2917099.09 | D3: =C2+C3 -> 83545886.11
A4: dodatek č. 3 | C4: 1613346.31 | D4: =D3+C4 -> 85159232.42
A5: dodatek č. 4 | C5: 1347826.91 | D5: =D4+C5 -> 86507059.33
